Cogmind - Beta 13 @@@ ROGUE MODE // 2024.04.16 @ 12:31:12 Player: Flex Pexico Result: Destroyed by Y-54 Guardian with Gatling Laser Performance ------------- Evolutions (4) 2000 Regions Visited (9) 1800 Robots Destroyed (80) 400 Value Destroyed (2036) 2036 Prototype IDs (28) 560 Alien Tech Used (0) 0 Bonus (490) 490 TOTAL SCORE: 7286 Bonus ------- Follower Combat Kills 190 Aligned with FarCom 300 Cogmind --------- Core Integrity 0/850 Matter 264/300 Energy 13/100 System Corruption 25% Temperature Cool (12) Movement Core (200) Ox3 Location -6/Factory Parts ------- > --- POWER (1) -------- (None) > --- PROPULSION (4) --- (None) > --- UTILITY (8) ------ Improved Cooling System Experimental Targeting Computer Hacking Suite System Shield > --- WEAPON (2) ------- Precision Rocket Launcher > --- INVENTORY (5) ---- Trap Scanner Heavy Armor Plating Hardened Light Armor Plating Improved Datajack Peak State ------------ > --- POWER ------------ Improved Ion Engine > --- PROPULSION ------- Carbon-fiber Leg Wheel Wheel Compact Wheel > --- UTILITY ---------- Lightpack 2.0 Structural Scanner Experimental Targeting Computer Hacking Suite System Shield High-powered Tractor Beam > --- WEAPON ----------- Arc Projector Arc Projector > --- INVENTORY -------- Light Ion Engine Advanced Treads Wheel Compact Wheel Compact Wheel Compact Wheel Heat Sink Cooling System Improved Cooling System Energy Well Large Matter Pod Trap Scanner Improved Terrain Scanner Advanced Terrain Scan Processor Advanced Targeting Computer Advanced Targeting Computer Experimental Targeting Computer Target Analyzer Target Analyzer Kinecellerator Transmission Jammer Heavy Armor Plating Hardened Light Armor Plating Improved Light Armor Plating Improved Medium Armor Plating Improved Medium Armor Plating Hacking Suite System Restoration Module Heavy EM Shotgun Arc Projector Arc Projector Arc Projector Particle Gun Improved Datajack Greatsword [Rating: 72] Favorites ----------- Power Light Nuclear Core Engine Light Ion Engine Power Core Light Nuclear Core Propulsion Wheel Treads Light Treads Leg Carbon-fiber Leg Wheel Wheel Utility Lightpack 2.0 Device Structural Scanner Storage Lightpack 2.0 Processor Experimental Targeting Computer Hackware Hacking Suite Protection Hardened Light Armor Plating Weapon Light Assault Rifle Energy Gun Small Laser Energy Cannon EM Pulse Cannon Ballistic Gun Light Assault Rifle Ballistic Cannon Flak Cannon Launcher Rocket Launcher Impact Weapon Great Maul Slashing Weapon Greatsword Build | -11 -10 -10 -10 -9 -8 -7 -7 -7 -6 ------- Run | Yrd Mat Min Exi Min Mat Fac Low Low Fac Slots Evolved 8 | . . . . . 4 2 . . 2 Power . | . . . . . . . . . . Propulsion 2 | . . . . . 1 . . . 1 Utility 6 | . . . . . 3 2 . . 1 Weapon . | . . . . . . . . . . Parts Attached 98 | 8 16 1 . 2 13 13 5 9 31 Power 6 | 1 1 . . 1 . 1 . . 2 Engine 3 | 1 1 . . . . . . . 1 Core 3 | . . . . 1 . 1 . . 1 Reactor . | . . . . . . . . . . Propulsion 26 | 2 5 1 . . 2 3 1 3 9 Treads 5 | 1 2 . . . 1 . . . 1 Leg 2 | . . . . . . . . 1 1 Wheel 19 | 1 3 1 . . 1 3 1 2 7 Hover . | . . . . . . . . . . Flight . | . . . . . . . . . . Utility 25 | 2 6 . . 1 4 4 2 . 6 Device 8 | 1 1 . . . 1 1 1 . 3 Storage 3 | 1 1 . . . 1 . . . . Processor 1 | . . . . . . . . . 1 Hackware 3 | . . . . . 1 2 . . . Protection 10 | . 4 . . 1 1 1 1 . 2 Artifact . | . . . . . . . . . . Weapon 41 | 3 4 . . . 7 5 2 6 14 Energy Gun 17 | 1 2 . . . 2 . . 2 10 Energy Cannon 6 | . . . . . 2 2 . 2 . Ballistic Gun 6 | 2 2 . . . . 1 . . 1 Ballistic Cannon 3 | . . . . . . 1 1 1 . Launcher 6 | . . . . . 2 1 1 1 1 Special Weapon . | . . . . . . . . . . Impact Weapon 1 | . . . . . 1 . . . . Slashing Weapon 2 | . . . . . . . . . 2 Piercing Weapon . | . . . . . . . . . . Special Melee Weapon . | . . . . . . . . . . Unidentified Prototypes 5 | . . . . . 3 . . . 2 Corrupted Parts 4 | . . . . . . . . 1 3 System Corruption 27 | . . . . . . . . 8 19 Parts Lost 52 | . 6 2 . . 1 3 1 11 28 Power 4 | . . . . . . 1 . 1 2 Propulsion 17 | . 1 1 . . . 1 . 3 11 Utility 12 | . 2 1 . . . 1 1 2 5 Weapon 19 | . 3 . . . 1 . . 5 10 Highest Loss Streak 10 | . 3 2 . . 1 2 1 10 9 To Critical Strikes . | . . . . . . . . . . Average Slot Usage (%) 82 | . 96 90 85 100 75 83 83 51 67 Engine 5 | . 13 14 14 13 . . . . 4 Core 3 | . . . . . 9 7 7 1 . Treads 8 | . 8 14 14 14 12 10 . . . Wheel 15 | . 19 14 14 14 13 11 23 10 15 Device 4 | . 6 . . . . 7 12 . 8 Storage 9 | . 14 14 14 14 9 7 7 7 6 Hackware 6 | . . . . . 2 14 15 15 13 Protection 7 | . 5 4 . 14 13 7 2 . 1 Energy Gun 4 | . 7 14 14 14 1 . . 8 4 Energy Cannon 2 | . . . . . 8 4 . . . Ballistic Gun 7 | . 19 14 14 14 1 3 7 . . Naked Turns . | . . . . . . . . . . Heaviest Build 32 | 12 28 28 25 32 32 31 27 15 28 Greatest Support 48 | 20 26 10 10 10 42 36 36 20 48 Greatest Overweight (x) 6 | . 2 2 2 3 3 3 1 4 6 Average Overweight (x) . | . . 2 2 2 . 1 . . . Largest Inventory Capacity 40 | 8 15 15 15 15 40 40 40 40 40 Average Capacity 31 | 7 14 15 15 15 40 40 40 40 39 Most Carried 37 | 5 15 15 15 15 26 31 30 26 37 Average Carried 20 | 2 10 14 14 14 19 25 26 22 30 Final Capacity 40 | 8 15 15 15 15 40 40 40 40 5 Final Carried 30 | 4 15 14 15 14 25 30 26 21 5 Class Distribution -------------------- 63% | Hauler-Mutant 34% | Mutant Dominant Class ---------------- Mutant | -10/Materials Mutant | -10/Mines Mutant | -10/Exiles Mutant | -9/Mines Hauler-Mutant | -8/Materials Hauler-Mutant | -7/Factory Hauler-Mutant | -7/Lower Caves Hauler-Mutant | -7/Lower Caves Hauler-Mutant | -6/Factory Resources | -11 -10 -10 -10 -9 -8 -7 -7 -7 -6 ----------- Run | Yrd Mat Min Exi Min Mat Fac Low Low Fac Matter Collected 1859 | 239 395 11 . 20 464 256 173 95 206 Remotely 68 | . . . . . . . . . 68 Salvage Created 2758 | 121 545 42 . . 405 383 103 224 935 Parts 189 | 9 42 2 . . 25 26 11 9 65 Haulers Intercepted . | . . . . . . . . . . Recyclers Shooed 2 | . 1 . . . . 1 . . . Parts Field Recycled . | . . . . . . . . . . Retrieved Matter . | . . . . . . . . . . Parts Self-Destructed 16 | . . . . . . . 11 5 . Prevented 1 | . . . . . . . . 1 . Kills | -11 -10 -10 -10 -9 -8 -7 -7 -7 -6 ------- Run | Yrd Mat Min Exi Min Mat Fac Low Low Fac Combat Hostiles Destroyed 51 | . 13 3 . . 8 4 5 7 11 Melee 4 | . . . . . 1 . . . 3 Guns 25 | . 13 3 . . . . . 3 6 Cannons 10 | . . . . . 4 1 4 1 . AOE 8 | . . . . . 2 3 1 2 . Classes Destroyed 12 | 2 5 . . . 2 1 . 1 1 Worker 8 | . 1 . . . 2 3 . . 2 Builder 5 | . 1 . . . . 1 . . 3 Tunneler 5 | 2 . . . . 1 1 . . 1 Recycler 9 | 1 2 . . . 1 3 . . 2 Watcher 2 | . 1 . . . 1 . . . . Swarmer 24 | . 6 3 . . . 3 3 4 5 Grunt 11 | . 7 . . . 2 . . 2 . Duelist 1 | . . . . . . . . 1 . Sentry 6 | . . . . . 4 . . . 2 Specialist 1 | . . . . . . . . . 1 Hunter 4 | . . . . . 2 . 1 . 1 Programmer 4 | . . . . . . 1 1 . 2 Best Kill Streak 7 | 1 6 3 . . 7 5 4 4 5 Combat Bots Only 5 | . 4 3 . . 2 3 4 4 5 Max Kills in Single Turn 2 | 1 2 1 . . 2 2 1 2 1 Gunslinging 1 | . 1 . . . . . . . . Exploded 2 | . . . . . 1 1 1 2 . Melee 1 | . . . . . 1 . . . 1 Uniques/NPCs Destroyed . | . . . . . . . . . . Combat | -11 -10 -10 -10 -9 -8 -7 -7 -7 -6 -------- Run | Yrd Mat Min Exi Min Mat Fac Low Low Fac Hostile Shots Fired 717 | . 118 15 . . 45 38 26 57 418 Missed 206 | . 29 3 . . 11 12 1 10 140 Damage Taken 6474 | . 900 98 . . 449 374 434 1040 3179 Core 1644 | . 227 . . . 52 49 90 375 851 Absorbed by Shields 44 | . . . . . . 44 . . . Core Remaining (%) 56 | 100 . . . 9 90 . . 26 . Volleys Fired 184 | 14 48 5 . . 12 25 10 26 44 Largest 2 | 2 2 2 . . 2 2 2 2 2 Hottest 126 | 40 60 60 . . 126 107 83 115 110 Shots Fired 336 | 28 95 10 . . 24 50 20 35 74 Gun 257 | 28 95 10 . . . 17 10 24 73 Cannon 61 | . . . . . 16 27 8 10 . Launcher 18 | . . . . . 8 6 2 1 1 Special . | . . . . . . . . . . Kinetic 141 | 28 53 5 . . . 28 16 8 3 Thermal 37 | . 22 5 . . . . . 10 . Explosive 18 | . . . . . 8 6 2 1 1 Electromagnetic 140 | . 20 . . . 16 16 2 16 70 Robot Hit Streak 14 | 2 14 4 . . 4 9 6 5 14 Robot Miss Streak 5 | 4 5 1 . . 2 3 3 4 3 Penetration Max . | . . . . . . . . . . Secondary Targets 5 | . 3 1 . . . . . . 1 Max Gunslinging Chain 1 | . 1 1 . . . . . . 1 Shots Hit Robots 231 | 10 58 7 . . 14 31 13 27 71 Core Hits 140 | 5 30 4 . . 20 20 16 16 29 Critical Kills . | . . . . . . . . . . Critical Parts Destroyed 1 | . . . . . 1 . . . . Critical Strikes 4 | . 1 . . . 1 . . . 2 Corrupt 1 | . 1 . . . . . . . . Smash 1 | . . . . . 1 . . . . Sever 2 | . . . . . . . . . 2 Melee Attacks 24 | . . . . . 5 . . . 19 Impact 5 | . . . . . 5 . . . . Slashing 19 | . . . . . . . . . 19 Piercing . | . . . . . . . . . . Sneak Attacks 9 | . . . . . . . . . 9 Combat Hostiles 2 | . . . . . . . . . 2 Follow-up Attacks . | . . . . . . . . . . Damage Inflicted 5512 | 140 708 70 . . 938 738 272 765 1881 Guns 1711 | 140 569 70 . . . 57 26 264 585 Cannons 943 | . . . . . 245 327 155 216 . Explosions 1523 | . 139 . . . 603 347 91 285 58 Melee 1328 | . . . . . 90 . . . 1238 Ramming 7 | . . . . . . 7 . . . Kinetic 1005 | 140 294 35 . . . 174 171 126 65 Thermal 604 | . 314 35 . . . . . 255 . Explosive 1221 | . . . . . 603 347 91 122 58 Electromagnetic 1347 | . 100 . . . 245 210 10 262 520 Impact 90 | . . . . . 90 . . . . Slashing 1238 | . . . . . . . . . 1238 Piercing . | . . . . . . . . . . Highest Corruption 25 | . . . . . 6 1 1 9 25 Average Corruption 1 | . . . . . 1 1 1 5 2 Corruption Purged . | . . . . . . . . . . Corruption Blocked . | . . . . . . . . . . Effects 39 | . . . . . 10 4 4 4 17 Message Errors 11 | . . . . . 3 2 2 . 4 Matter Fused 10 | . . . . . 5 1 . . 4 Heat Flow Errors 4 | . . . . . . . . 1 3 Energy Discharges 4 | . . . . . 2 1 1 . . Data Loss (minor) 5 | . . . . . . . 1 . 4 Data Loss (major) 1 | . . . . . . . . 1 . Alerts 1 | . . . . . . . . . 1 Weapon Failures 3 | . . . . . . . . 2 1 Overload Shots . | . . . . . . . . . . Overflow Damage 377 | . . . . . 63 . . 21 293 Projectiles . | . . . . . . . . . . Explosions 44 | . . . . . 23 . . 21 . Melee 333 | . . . . . 40 . . . 293 Knockbacks 17 | . . . . . 1 9 3 4 . Impact 1 | . . . . . 1 . . . . Kinetic 16 | . . . . . . 9 3 4 . Secondary . | . . . . . . . . . . Self-Inflicted Damage 267 | . 40 . . . . 13 49 107 58 Shots 7 | . 1 . . . . 1 2 2 1 Rammed 4 | . . . . . . 2 . . 2 Targets Rammed 4 | . . . . . . 2 . . 2 Kicked . | . . . . . . . . . . Crushed . | . . . . . . . . . . Highest Temperature 396 | . 186 23 . . 140 396 54 176 240 Average Temperature 76 | . 48 13 . . 58 131 20 97 86 Received Heat Transfer 882 | . 255 . . . 72 . . 225 330 Effects 5 | . . . . . . 3 . . 2 Shutdowns 1 | . . . . . . 1 . . . Energy Bleed 1 | . . . . . . 1 . . . Interference 3 | . . . . . . 1 . . 2 Siege Activations . | . . . . . . . . . . Robots Corrupted 3 | . . . . . . . . 1 2 Combat Hostiles 3 | . . . . . . . . 1 2 Parts Fried 16 | . . . . . 6 . . 2 8 Impact Corruptions 2 | . . . . . 2 . . . . Robots Melted . | . . . . . . . . . . Combat Hostiles . | . . . . . . . . . . Parts Melted . | . . . . . . . . . . Heat Transferred 1047 | . 600 75 . . . . . 372 . Parts Sabotaged . | . . . . . . . . . . Parts Stolen . | . . . . . . . . . . Parts Stripped . | . . . . . . . . . . Power Chain Reactions 2 | . 1 . . . . . . 1 . Alert | -11 -10 -10 -10 -9 -8 -7 -7 -7 -6 ------- Run | Yrd Mat Min Exi Min Mat Fac Low Low Fac Peak Influence 221 | 15 177 92 . 136 192 184 . . 221 Initial 75 | . 9 42 . . . 9 . . 75 Average 52 | 4 59 49 . 50 45 36 . . 78 Maximum Alert Level 1 | . . . . . . . . . 1 Low Security (%) 98 | 100 100 100 . 100 100 100 . . 93 Level 1 1 | . . . . . . . . . 6 Level 2 . | . . . . . . . . . . Level 3 . | . . . . . . . . . . Level 4 . | . . . . . . . . . . Level 5 . | . . . . . . . . . . High Security . | . . . . . . . . . . Max Security . | . . . . . . . . . . Squads Dispatched 11 | . 2 . . . 3 3 . . 3 Investigation 3 | . . . . . 2 1 . . . Extermination 5 | . . . . . . 2 . . 3 Reinforcement 3 | . 2 . . . 1 . . . . Assault . | . . . . . . . . . . Garrison . | . . . . . . . . . . Intercept . | . . . . . . . . . . Searches Triggered . | . . . . . . . . . . Construction Impeded . | . . . . . . . . . . Haulers Reinforced . | . . . . . . . . . . Active Scanning Responses . | . . . . . . . . . . Cargo Convoy Interrupts 1 | . . . . . . . . . 1 Stealth | -11 -10 -10 -10 -9 -8 -7 -7 -7 -6 --------- Run | Yrd Mat Min Exi Min Mat Fac Low Low Fac Distress Signals 3 | . . . . . 1 1 . . 1 Communications Jammed . | . . . . . . . . . . Distress Signals . | . . . . . . . . . . Times Spotted 97 | . 24 3 . . 22 7 5 7 29 Peak Tracking Total 6 | . 5 3 . . 5 4 3 4 6 Tactical Retreats 5 | . . . . . . . . . 5 Traps | -11 -10 -10 -10 -9 -8 -7 -7 -7 -6 ------- Run | Yrd Mat Min Exi Min Mat Fac Low Low Fac Traps Triggered 4 | . 2 . . . 1 1 . . . Indirectly . | . . . . . . . . . . Trap Hack Attempts . | . . . . . . . . . . Triggered . | . . . . . . . . . . Disarmed . | . . . . . . . . . . Reprogrammed . | . . . . . . . . . . Reused . | . . . . . . . . . . Traps Extracted . | . . . . . . . . . . Installed . | . . . . . . . . . . Triggered . | . . . . . . . . . . Machines | -11 -10 -10 -10 -9 -8 -7 -7 -7 -6 ---------- Run | Yrd Mat Min Exi Min Mat Fac Low Low Fac Machines Disabled 5 | . 1 . . . 2 1 . . 1 Max in Single Turn 2 | . 1 . . . 2 1 . . 1 Machines Repaired . | . . . . . . . . . . Machines Dismantled . | . . . . . . . . . . Machines Sabotaged . | . . . . . . . . . . Overloaded Fab Kills . | . . . . . . . . . . Hacking | -11 -10 -10 -10 -9 -8 -7 -7 -7 -6 --------- Run | Yrd Mat Min Exi Min Mat Fac Low Low Fac Machines Accessed 12 | . . . 1 1 4 2 1 . 3 Terminals 11 | . . . . 1 4 2 1 . 3 Fabricators . | . . . . . . . . . . Repair Stations . | . . . . . . . . . . Recycling Units . | . . . . . . . . . . Scanalyzers . | . . . . . . . . . . Garrison Access . | . . . . . . . . . . Total Hacks 25 | . . . 1 1 12 3 1 . 7 Successful 14 | . . . 1 1 7 1 1 . 3 Failed 11 | . . . . . 5 2 . . 4 Catastrophic 3 | . . . . . 2 1 . . . Database Lockouts . | . . . . . . . . . . Manual 19 | . . . 1 . 8 3 . . 7 Terminals 24 | . . . . 1 12 3 1 . 7 Fabricators . | . . . . . . . . . . Repair Stations . | . . . . . . . . . . Recycling Units . | . . . . . . . . . . Scanalyzers . | . . . . . . . . . . Garrison Access . | . . . . . . . . . . Terminal Hacks 6 | . . . 1 1 3 . 1 . . Record 2 | . . . . . 1 . 1 . . Terminal Index 1 | . . . . . 1 . . . . Zone Layout 2 | . . . . 1 1 . . . . Derelict Proto ID Bank 1 | . . . 1 . . . . . . Fabricator Hacks . | . . . . . . . . . . Repair Station Hacks . | . . . . . . . . . . Recycling Unit Hacks . | . . . . . . . . . . Scanalyzer . | . . . . . . . . . . Garrison Access Hacks . | . . . . . . . . . . Unauthorized Hacks 8 | . . . . . 4 1 . . 3 Terminals 8 | . . . . . 4 1 . . 3 Assimilate 2 | . . . . . 1 . . . 1 Botnet 6 | . . . . . 3 1 . . 2 Fabricators . | . . . . . . . . . . Repair Stations . | . . . . . . . . . . Recycling Units . | . . . . . . . . . . Scanalyzers . | . . . . . . . . . . Garrison Access . | . . . . . . . . . . Data Cores Recovered . | . . . . . . . . . . Used . | . . . . . . . . . . Hacking Detections 10 | . . . . . 4 2 1 . 3 Full Trace Events 3 | . . . . . 2 1 . . . Feedback Events . | . . . . . . . . . . Feedback Blocked . | . . . . . . . . . . Robot Schematics Acquired . | . . . . . . . . . . Robots Built . | . . . . . . . . . . Authchips . | . . . . . . . . . . Time . | . . . . . . . . . . Total Robot Build Rating . | . . . . . . . . . . Part Schematics Acquired . | . . . . . . . . . . Parts Built . | . . . . . . . . . . Authchips . | . . . . . . . . . . Time . | . . . . . . . . . . Total Part Build Rating . | . . . . . . . . . . Parts Repaired . | . . . . . . . . . . Time . | . . . . . . . . . . Parts Recycled . | . . . . . . . . . . Recycled Matter . | . . . . . . . . . . Retrieved Matter . | . . . . . . . . . . Retrieved Components . | . . . . . . . . . . Parts Scanalyzed . | . . . . . . . . . . Part Schematics Acquired . | . . . . . . . . . . Parts Damaged . | . . . . . . . . . . Bothacking | -11 -10 -10 -10 -9 -8 -7 -7 -7 -6 ------------ Run | Yrd Mat Min Exi Min Mat Fac Low Low Fac Used RIF Installer . | . . . . . . . . . . Robots Hacked . | . . . . . . . . . . Non-combat . | . . . . . . . . . . Combat . | . . . . . . . . . . Robot Hacks Applied . | . . . . . . . . . . Relay Couplers Released . | . . . . . . . . . . Fabnet Peak Effective % . | . . . . . . . . . . Robots Rewired . | . . . . . . . . . . Allies Hacked . | . . . . . . . . . . Hacks Repelled . | . . . . . . . . . . Allies | -11 -10 -10 -10 -9 -8 -7 -7 -7 -6 -------- Run | Yrd Mat Min Exi Min Mat Fac Low Low Fac Total Allies 16 | . . 3 . . . 12 . . 1 Largest Group 8 | . . 3 3 3 3 8 . . 1 Highest-Rated Group 135 | . . 40 40 40 40 135 . . 26 Highest-Rated Ally 31 | . . 16 16 16 16 31 . . 26 Total Orders 2 | . . . . . . . 2 . . EXPLORE 2 | . . . . . . . 2 . . Ally Attacks 26 | . . . . 15 6 5 . . . Total Damage 287 | . . . . 171 62 54 . . . Kills 6 | . . . . 5 . 1 . . . Allies Corrupted . | . . . . . . . . . . Allies Melted . | . . . . . . . . . . Intel | -11 -10 -10 -10 -9 -8 -7 -7 -7 -6 ------- Run | Yrd Mat Min Exi Min Mat Fac Low Low Fac Robot Analysis Total . | . . . . . . . . . . Derelict Logs Recovered 5 | . . 1 . 1 . . 3 . . Drone Launches 2 | . . . . . . . 2 . . Drone Recoveries 2 | . . . . . . . . 2 . Exploration | -11 -10 -10 -10 -9 -8 -7 -7 -7 -6 ------------- Run | Yrd Mat Min Exi Min Mat Fac Low Low Fac Turns Passed 7738 | 148 1356 544 245 414 1904 1005 725 119 1278 Spaces Moved 4572 | 65 686 433 214 339 965 501 419 29 921 Core 50 | 18 . . . . . . . 6 26 Treads 273 | 47 136 . . . 90 . . . . Legs 21 | . . . . . . . . . 21 Wheels 4228 | . 550 433 214 339 875 501 419 23 874 Hover . | . . . . . . . . . . Flight . | . . . . . . . . . . Fastest Speed 50 | 50 90 110 110 110 95 86 86 80 80 Average Speed 103 | 129 125 110 110 110 100 97 92 97 91 Slowest Speed 350 | 160 240 110 110 125 152 125 105 250 350 Overloaded Moves . | . . . . . . . . . . Propulsion Burnouts . | . . . . . . . . . . Robots Hopped . | . . . . . . . . . . Cave-ins Triggered . | . . . . . . . . . . Exploration Rate (%) 53 | 3 94 93 61 71 64 17 97 3 27 Regions Visited 9 Branch Regions 5 Pre-discovered Areas 2 | . . 1 . . . . 1 . . Known Exits Taken . | . . . . . . . . . . Unknown Exits Taken 9 | 1 1 1 1 1 1 1 1 1 . Scrap Searched 7 | . . 1 . 3 . . 3 . . Spaces Dug 4 | . . . . . . . . . 4 Terrain Destroyed 115 | . 2 . . . 38 28 27 16 4 Melee 4 | . . . . . . . . . 4 Projectile . | . . . . . . . . . . AOE 111 | . 2 . . . 38 28 27 16 . Terrain Rammed . | . . . . . . . . . . Walls Destroyed . | . . . . . . . . . . Machines Disabled . | . . . . . . . . . . Actions | -11 -10 -10 -10 -9 -8 -7 -7 -7 -6 --------- Run | Yrd Mat Min Exi Min Mat Fac Low Low Fac Total 7188 | 103 1096 491 224 378 1864 971 739 82 1240 Wait 2167 | 6 321 53 8 36 833 409 302 15 184 Move 4563 | 64 685 432 213 338 964 500 418 28 921 Hop . | . . . . . . . . . . Pick Up 116 | 11 24 . 1 1 28 16 1 3 31 Fast Attach 1 | . 1 . . . . . . . . Attach 75 | 7 11 1 . 1 7 7 3 7 31 Detach 8 | . . . . . 2 1 1 . 4 Swap 23 | 1 4 . . 1 7 6 2 2 . Drop 19 | . 2 . 2 1 6 1 2 1 4 Fire 184 | 14 48 5 . . 12 25 10 26 44 Melee 24 | . . . . . 5 . . . 19 Ram 4 | . . . . . . 2 . . 2 Kick . | . . . . . . . . . . Crush . | . . . . . . . . . . Escape Stasis 4 | . . . . . . 4 . . . Rewire . | . . . . . . . . . . Trap . | . . . . . . . . . . Miscellaneous . | . . . . . . . . . . Route ------- -11/Scrapyard -10/Materials (discovered 4 exits: [*Mat x3] / [*Min]) -10/Mines (discovered 2 exits: [*Mat] / *Exi) -10/Exiles (discovered 2 exits: *Min x2) -9/Mines -8/Materials -7/Factory -7/Lower Caves -7/Lower Caves -6/Factory (discovered 1 exit: [*Low]) History --------- Turn | Location | Event 11 | -11/Scrapyard | Discovered new exit (range 15) 149 | -11/Scrapyard | Entered Materials 307 | -10/Materials | Build established: Mutant 786 | -10/Materials | Lost 3 parts (1n1u1w) 787 | -10/Materials | Core integrity fell below 50% 837 | -10/Materials | Discovered new exit (range 16) 852 | -10/Materials | Discovered new exit (range 7) 1014 | -10/Materials | Core integrity fell below 20% 1195 | -10/Materials | Discovered new exit (range 15) 1392 | -10/Materials | Discovered new exit (range 16) 1505 | -10/Materials | Entered Mines 1835 | -10/Mines | Discovered new exit (range 12) 1840 | -10/Mines | Learned location of Storage (-7) 1840 | -10/Mines | Learned Materials terminal intel 1973 | -10/Mines | Assisted by bots powering up and referring to "LRC-V3" 2037 | -10/Mines | Deemed a non-threat by the Exiles lab entrance 2037 | -10/Mines | Discovered new exit (range 5) 2049 | -10/Mines | Entered Exiles 2049 | -10/Exiles | Accompanied by 3 allies 2067 | -10/Exiles | Discovered new exit (range 15) 2080 | -10/Exiles | Met 8R-AWN 2095 | -10/Exiles | Met EX-HEX 2130 | -10/Exiles | Met EX-BIN 2145 | -10/Exiles | Aligned with FarCom system 2146 | -10/Exiles | Given EX-Vault access code 2172 | -10/Exiles | Opened EX-Vault 2179 | -10/Exiles | Found Lightpack 2.0 2204 | -10/Exiles | Warned to stay clear of 0b10 Research branches 2233 | -10/Exiles | Met EX-DEC 2274 | -10/Exiles | Discovered new exit (range 12) 2294 | -10/Exiles | Left Exiles lab with Lightpack 2.0 2294 | -10/Exiles | Entered Mines 2294 | -9/Mines | Accompanied by 3 allies 2405 | -9/Mines | Found a hidden stash of uninstalled traps 2679 | -9/Mines | Discovered new exit (range 14) 2703 | -9/Mines | Learned Materials emergency access door positions 2708 | -9/Mines | Entered Materials 2708 | -8/Materials | Accompanied by 3 allies 2708 | -8/Materials | Evolved 4 slots: Propulsion x1, Utility x3 2710 | -8/Materials | Loaded intel: 12 terminal locations 2930 | -8/Materials | Lost 3 allies 3234 | -8/Materials | Build established: Hauler-Mutant 3938 | -8/Materials | Discovered new exit (range 9) 4612 | -8/Materials | Entered Factory 4612 | -7/Factory | Evolved 2 slots: Utility x2 5522 | -7/Factory | Discovered new exit (range 7) 5617 | -7/Factory | Entered Lower Caves 5838 | -7/Lower Caves | Learned Factory machine intel 5858 | -7/Lower Caves | Learned Factory trap positions 5982 | -7/Lower Caves | Discovered new exit (range 90) 6246 | -7/Lower Caves | Learned location of Extension (-6) 6303 | -7/Lower Caves | Encountered a Warlord checkpoint 6342 | -7/Lower Caves | Entered another Lower Caves area 6342 | -7/Lower Caves | Accompanied by 2 allies 6365 | -7/Lower Caves | Core integrity fell below 50% 6407 | -7/Lower Caves | Lost 10 parts (1p3n2u4w) 6453 | -7/Lower Caves | Discovered new exit (range 10) 6461 | -7/Lower Caves | Entered Factory 6461 | -6/Factory | Evolved 2 slots: Propulsion x1, Utility x1 6462 | -6/Factory | Loaded intel: 84 trap records 6463 | -6/Factory | Loaded intel: 255 machine locations 7031 | -6/Factory | Found Prototype Processor 7032 | -6/Factory | Identified Exp. Targeting Computer 7036 | -6/Factory | Found Exp. Targeting Computer 7275 | -6/Factory | Lost 6 parts (3n1u2w) 7480 | -6/Factory | Cargo convoy interrupted 7545 | -6/Factory | Discovered new exit (range 15) 7567 | -6/Factory | Core integrity fell below 50% 7569 | -6/Factory | Spotted B-75 Beast 7592 | -6/Factory | Lost 9 parts (5n1u3w) 7699 | -6/Factory | System corruption reached 10% 7706 | -6/Factory | Core integrity fell below 20% 7730 | -6/Factory | Lost 7 parts (1p2u4w) 7739 | -6/Factory | Destroyed by Y-54 Guardian with Gatling Laser Last Messages --------------- K-01 Serf collects debris. Fabricator disabled. Acquired Corrupted Gauss Rifle. Integrated Corrupted Gauss Rifle (+3). Acquired 1 matter. P-60 Hacker resets Y-54 Guardian, system corruption cleaned. System corrupted: Component data lost. ALERT: Rogue bot located, Programmers report to Factory Zone 8I. System corrupted: IFF burst signal emitted. Acquired Prototype Launcher. Identified Prc. Rocket Launcher. Flexi-carbon Leg destroyed. Slug penetrates P-60 Hacker. Subcomponent Replicator disabled. Gauss Rifle destroyed. Lightpack 2.0 destroyed. System corrupted: Prc. Rocket Launcher failed to launch. Map ----- +----------------------------------------------------+ | ???????????????????????????????????? | | ???????????????????????????????????? | | ???????????????????????????????????? | | ???????????????????????????????????? | | ???????????????????????????????????? | | ????????????#######????????????????? | | ???????############????????????????? | | ???????## ! ##????????????????? | | ???????## ##????????????????? | | ???????## ##????????????????? | | ???????## "" * ##????????????????? | | ???????## """ ##????????????????? | | ???????## "F ##????????????????? | | ######### """ ##????????????????? | | #########=%"" ##????????????????? | | ^^ #*!%! ###???????????????? | | ^^ ###/########???????????????? | | %%= ##???????????????? | | * ##???????????????? | | """" ##???????????????? | | "F "#### ##############???? | | ##### BB# #???? | | ## ##??# BB; "" = """#???? | | ## ! ##??# # "" !! Y"#???? | | ##??# # !!! """#???? | | ""??# # !!@!! #???? | | ## ]]] Y"??# # *!!!! #???? | | ## ]] ""??# Y p ! #???? | | ## ]] ##??# # #???? | | ## ##??# # !#???? | | ## ##??# # #???? | | ?#+#+######???# #! #???? | | ? ???# # / #???? | | ??????????????# ##############???? | | "?"?"?"?"?????# #????????????????? | | "?"?"?"?"?????# #????????????????? | | "?"?"?"?"?????# #????????????????? | | "?"?"?"?"?????# #????????????????? | | "?"?"?"?"?????# #????????????????? | | "?"?"?"?"?????# ?????????????????? | | "?"?"?"?"?????# ?????????????????? | | "?"?"?"?"?????? ?????????????????? | | "?"?"?"?"???????????""""???????????? | | ????????????????????""""???????????? | | ????????????????????""""???????????? | | ????????????????????""""???????????? | | ????????????????????""""???????????? | | ????????????????????""""???????????? | | ????????????????????""""???????????? | | ???????????????????????????????????? | +----------------------------------------------------+ Best States ------------- Heat Dissipation 64 Energy Generation 15 Energy Capacity 265 Matter Stores 300 Matter Capacity 300 Sight Range 16 Terrain Scan Range 16 Terrain Scan Density 10 Armor Coverage 375 Evasion (%) 50 Targeting Accuracy 12 Recoil Reduction 2 Offensive Hacking 10 Defensive Hacking 10 Item Schematics ----------------- None Robot Schematics ------------------ None Fabricated ------------ Nothing Alien Tech Used ----------------- None Achievements -------------- Packrat Challenges ------------ None Game ------ Seed MicroCommDisintegrator Manual? 0 Play Time 01:11:15 Cumulative 63.8 hours Start 2024.04.16 @ 11:16:08 End 2024.04.16 @ 12:31:12 Sessions 1 Manual Loads 0 Difficulty Rogue Special Mode None Game No. 63 Rogue 63 Adventurer 0 Explorer 0 Win Type - Total 0 Types 0/0/0/0/0/0/0/0/0 Lore% 31 Gallery% 42 Achievement% 33 Wizard Run 0 Options --------- Layout 2 ASCII 0 Keyboard 0 Movement Mouse Keybinds 0 Fullscreen 2 Font 24/Smallcaps Map View 50x44 Zoom Use 0% Tactical HUD 0 Map Filters NONE Filters NONE Steam 1 RUN: 1a94297e-c69b-4774-97a9-91154849d176